fUST/lending_fUST_20260113
["ID","MTS","AMOUNT","RATE_DAILY","PERIOD"]
[401453070,1768233613480,155.0,8.06e-05,2]
[401453105,1768234232255,-500.0,0.00013273,2]
[401453107,1768234232264,-261.12414975,0.00013379,2]
[401453109,1768234232274,-500.0,0.00013699,2]
[401453111,1768234232284,-1000.0,0.000137,2]
[401453113,1768234232292,-1000.0,0.00013821,2]
[401453115,1768234232302,-1000.0,0.00014247,2]
[401453117,1768234232312,-981.77926784,0.00014368,2]
[401453193,1768234238752,-33.9237819,0.00014368,2]
[401453194,1768234238763,-1000.0,0.000147,2]
[401453195,1768234238774,-1500.0,0.00014795,2]
[401453196,1768234238785,-155.57399191,0.00014858,2]
[401453197,1768234238796,-157.11492553,0.00014858,2]
[401453198,1768234238807,-300.0,0.00014882,2]
[401453199,1768234238817,-500.0,0.00014883,2]
[401453200,1768234238828,-500.0,0.00014883,2]
[401453201,1768234238838,-500.0,0.00014883,2]
[401453202,1768234238849,-151.48350527,0.000149,2]
[401453203,1768234238859,-151.48350527,0.000149,2]
[401453204,1768234238871,-300.0,0.00015078,2]
[401453205,1768234238882,-300.0,0.00015078,2]
[401453206,1768234238892,-300.0,0.00015078,2]
[401453207,1768234238902,-300.0,0.00015078,2]
[401453208,1768234238913,-300.0,0.00015078,2]
[401453209,1768234238924,-300.0,0.00015078,2]
[401453210,1768234238934,-300.0,0.00015078,2]
[401453211,1768234238945,-300.0,0.00015078,2]
[401453212,1768234238957,-300.0,0.00015078,2]
[401453213,1768234238969,-300.0,0.00015078,2]
[401453214,1768234238980,-300.0,0.00015078,2]
[401453215,1768234238990,-300.0,0.00015078,2]
[401453216,1768234239001,-300.0,0.00015078,2]
[401453217,1768234239012,-300.0,0.00015078,2]
[401453218,1768234239022,-300.0,0.00015078,2]
[401453219,1768234239032,-600.0,0.0001518,2]
[401453220,1768234239042,-155.57399191,0.00015317,2]
[401453221,1768234239053,-2000.0,0.00015342,2]
[401453222,1768234239063,-308.1264967,0.00015379,2]
[401453223,1768234239074,-525.90656933,0.00015698,2]
[401453224,1768234239085,-1075.85366962,0.000157,2]
[401453225,1768234239096,-155.5739919,0.00015791,2]
[401453226,1768234239107,-2500.0,0.0001589,2]
[401453227,1768234239117,-1012.33286536,0.00016438,2]
[401453228,1768234239128,-720.0,0.00016698,2]
[401453229,1768234239138,-1986.68299726,0.00016738,2]
[401453230,1768234239149,-583.03771715,0.00016738,2]
[401453231,1768234239159,-228.70879455,0.00016995,7]
[401453232,1768234239170,-6928.74454649,0.00017253,2]
[401453233,1768234239180,-500.0,0.00017351,2]
[401453234,1768234239190,-500.0,0.00017351,2]
[401453235,1768234239199,-500.0,0.00017351,2]
[401453236,1768234239209,-500.0,0.00017351,2]
[401453237,1768234239219,-500.0,0.00017351,2]
[401453238,1768234239229,-500.0,0.00017351,2]
[401453239,1768234239240,-500.0,0.00017351,2]
[401453240,1768234239250,-500.0,0.00017351,2]
[401453241,1768234239260,-500.0,0.00017351,2]
[401453242,1768234239272,-500.0,0.00017351,2]
[401453243,1768234239283,-500.0,0.00017351,2]
[401453244,1768234239294,-500.0,0.00017351,2]
[401453245,1768234239304,-500.0,0.00017351,2]
[401453246,1768234239316,-500.0,0.00017351,2]
[401453247,1768234239327,-500.0,0.00017351,2]
[401453248,1768234239338,-500.0,0.00017351,2]
[401453249,1768234239348,-500.0,0.00017351,2]
[401453250,1768234239359,-500.0,0.00017351,2]
[401453251,1768234239370,-500.0,0.00017351,2]
[401453252,1768234239380,-500.0,0.00017351,2]
[401453253,1768234239391,-500.0,0.00017351,2]
[401453254,1768234239401,-500.0,0.00017351,2]
[401453255,1768234239410,-500.0,0.00017351,2]
[401453256,1768234239420,-500.0,0.00017351,2]
[401453257,1768234239430,-500.0,0.00017351,2]
[401453258,1768234239440,-500.0,0.00017351,2]
[401453259,1768234239450,-500.0,0.00017351,2]
[401453260,1768234239461,-500.0,0.00017351,2]
[401453261,1768234239471,-453.83299408,0.00017351,2]
[401453262,1768234239481,-500.0,0.00017351,2]
[401453263,1768234239491,-500.0,0.00017351,2]
[401453264,1768234239502,-500.0,0.00017351,2]
[401453265,1768234239513,-500.0,0.00017351,2]
[401453266,1768234239525,-500.0,0.00017351,2]
[401453267,1768234239536,-500.0,0.00017351,2]
[401453268,1768234239546,-500.0,0.00017351,2]
[401453269,1768234239557,-500.0,0.00017351,2]
[401453270,1768234239568,-500.0,0.00017351,2]
[401453271,1768234239579,-500.0,0.00017351,2]
[401453272,1768234239590,-500.0,0.00017351,2]
[401453273,1768234239600,-500.0,0.00017351,2]
[401453274,1768234239610,-500.0,0.00017351,2]
[401453275,1768234239620,-500.0,0.00017351,2]
[401453276,1768234239631,-500.0,0.00017351,2]
[401453277,1768234239641,-500.0,0.00017351,2]
[401453278,1768234239652,-500.0,0.00017351,2]
[401453279,1768234239662,-500.0,0.00017351,2]
[401453280,1768234239672,-500.0,0.00017351,2]
[401453281,1768234239682,-500.0,0.00017351,2]
[401453282,1768234239693,-500.0,0.00017351,2]
[401453283,1768234239703,-500.0,0.00017351,2]
[401453284,1768234239714,-500.0,0.00017351,2]
[401453285,1768234239724,-500.0,0.00017351,2]
[401453286,1768234239735,-500.0,0.00017351,2]
[401453287,1768234239745,-500.0,0.00017351,2]
[401453288,1768234239756,-500.0,0.00017351,2]
[401453289,1768234239768,-500.0,0.00017351,2]
[401453290,1768234239779,-500.0,0.00017351,2]
[401453291,1768234239790,-500.0,0.00017351,2]
[401453292,1768234239801,-500.0,0.00017351,2]
[401453293,1768234239812,-500.0,0.00017351,2]
[401453294,1768234239823,-500.0,0.00017351,2]
[401453295,1768234239833,-500.0,0.00017351,2]
[401453296,1768234239844,-500.0,0.00017351,2]
[401453297,1768234239855,-586.38207555,0.00017351,2]
[401453298,1768234239866,-500.0,0.00017351,2]
[401453299,1768234239877,-500.0,0.00017351,2]
[401453300,1768234239888,-500.0,0.00017351,2]
[401453301,1768234239899,-500.0,0.00017351,2]
[401453302,1768234239911,-500.0,0.00017351,2]
[401453303,1768234239922,-500.0,0.00017351,2]
[401453304,1768234239934,-500.0,0.00017351,2]
[401453305,1768234239946,-500.0,0.00017351,2]
[401453306,1768234239958,-500.0,0.00017351,2]
[401453307,1768234239971,-500.0,0.00017351,2]
[401453308,1768234239984,-500.0,0.00017351,2]
[401453309,1768234239996,-500.0,0.00017351,2]
[401453310,1768234240009,-500.0,0.00017351,2]
[401453311,1768234240021,-500.0,0.00017351,2]
[401453312,1768234240032,-266.02898353,0.00017351,2]
[401453313,1768234240044,-500.0,0.00017351,2]
[401453314,1768234240055,-500.0,0.00017351,2]
[401453315,1768234240067,-500.0,0.00017351,2]
[401453316,1768234240079,-500.0,0.00017351,2]
[401453317,1768234240091,-500.0,0.00017351,2]
[401453318,1768234240102,-500.0,0.00017351,2]
[401453319,1768234240113,-500.0,0.00017351,2]
[401453320,1768234240123,-500.0,0.00017351,2]
[401453321,1768234240134,-500.0,0.00017351,2]
[401453322,1768234240144,-500.0,0.00017351,2]
[401453323,1768234240155,-500.0,0.00017351,2]
[401453324,1768234240165,-500.0,0.00017351,2]
[401453325,1768234240176,-500.0,0.00017351,2]
[401453326,1768234240187,-500.0,0.00017351,2]
[401453327,1768234240200,-500.0,0.00017351,2]
[401453328,1768234240211,-250.30065604,0.00017351,2]
[401453329,1768234240222,-500.0,0.00017351,2]
[401453330,1768234240233,-1366.0,0.00017355,2]
[401453331,1768234240243,-2147.0,0.00017355,2]
[401453332,1768234240254,-715.0,0.00017355,2]
[401453333,1768234240265,-197.827,0.00017355,2]
[401453334,1768234240275,-417.0,0.00017355,2]
[401453335,1768234240286,-417.0,0.00017355,2]
[401453336,1768234240297,-355.12884365,0.00017379,2]
[401453337,1768234240309,-500.0,0.00017509,2]
[401453338,1768234240323,-2924.3817078,0.00017756,2]
[401453339,1768234240333,-1189.67367609,0.00017833,2]
[401453340,1768234240344,-400.0,0.00017852,2]
[401453341,1768234240355,-5000.0,0.00017888,2]
[401453342,1768234240367,-427.61634058,0.00017888,2]
[401453343,1768234240379,-500.0,0.00017888,2]
[401453344,1768234240391,-500.0,0.00017888,2]
[401453346,1768234240401,-500.0,0.00017888,2]
[401453348,1768234240411,-500.0,0.00017888,2]
[401453349,1768234240420,-310.29399798,0.00017888,2]
[401453351,1768234240430,-647.95726298,0.00017888,2]
[401453353,1768234240440,-647.95726298,0.00017888,2]
[401453355,1768234240450,-647.95726298,0.00017888,2]
[401453357,1768234240461,-647.95726298,0.00017888,2]
[401453358,1768234240471,-647.95726298,0.00017888,2]
[401453360,1768234240483,-647.95726298,0.00017888,2]
[401453362,1768234240493,-647.95726298,0.00017888,2]
[401453364,1768234240503,-647.95726298,0.00017888,2]
[401453366,1768234240513,-647.95726298,0.00017888,2]
[401453368,1768234240524,-647.95726298,0.00017888,2]
[401453369,1768234240535,-647.95726298,0.00017888,2]
[401453370,1768234240546,-647.95726298,0.00017888,2]
[401453371,1768234240556,-647.95726298,0.00017888,2]
[401453372,1768234240567,-680.35512614,0.00017888,2]
[401453373,1768234240577,-680.35512614,0.00017888,2]
[401453374,1768234240587,-680.35512614,0.00017888,2]
[401453375,1768234240598,-680.35512614,0.00017888,2]
[401453376,1768234240609,-680.35512614,0.00017888,2]
[401453377,1768234240619,-680.35512614,0.00017888,2]
[401453378,1768234240629,-680.35512614,0.00017888,2]
[401453379,1768234240640,-682.62297656,0.00017888,2]
[401453380,1768234240651,-682.62297656,0.00017888,2]
[401453381,1768234240663,-682.62297656,0.00017888,2]
[401453382,1768234240674,-682.62297656,0.00017888,2]
[401453383,1768234240685,-682.62297656,0.00017888,2]
[401453384,1768234240695,-682.62297656,0.00017888,2]
[401453385,1768234240813,-204572.91538416,0.00017889,2]
[401453386,1768234240828,-219.74266624,0.00017933,2]
[401453387,1768234240839,-104422.68154787,0.00017987,2]
[401453388,1768234240850,-21922.7479227,0.00018027,2]
[401453389,1768234240861,-15471.022406,0.00018027,2]
[401453390,1768234240872,-376.1765592,0.00018027,2]
[401453391,1768234240882,-989.0,0.00018049,2]
[401453392,1768234240893,-216.3,0.00018049,2]
[401453393,1768234240903,-377.3811929,0.00018356,2]
[401453394,1768234240913,-377.3811929,0.00018356,2]
[401453395,1768234240924,-864.0,0.00018368,2]
[401453396,1768234240935,-2030.296672,0.00018377,2]
[401453397,1768234240946,-250.0,0.00018377,2]
[401453398,1768234240957,-250.0,0.00018377,2]
[401453399,1768234240968,-250.0,0.00018377,2]
[401453400,1768234240978,-250.0,0.00018377,2]
[401453401,1768234240989,-2398.4119403,0.00018377,2]
[401453402,1768234240999,-181.08010149,0.00018377,2]
[401453403,1768234241010,-250.0,0.00018377,2]
[401453404,1768234241021,-250.0,0.00018377,2]
[401453405,1768234241031,-187.78006525,0.00018377,2]
[401453406,1768234241043,-250.0,0.00018377,2]
[401453407,1768234241054,-250.0,0.00018377,2]
[401453408,1768234241064,-194.72792766,0.00018377,2]
[401453409,1768234241075,-250.0,0.00018377,2]
[401453410,1768234241086,-250.0,0.00018377,2]
[401453411,1768234241097,-201.93286099,0.00018377,2]
[401453412,1768234241109,-21611.32097374,0.00018377,2]
[401453413,1768234241121,-250.0,0.00018377,2]
[401453414,1768234241132,-1500.0,0.00018377,2]
[401453415,1768234241143,-209.40437684,0.00018377,2]
[401453416,1768234241155,-1500.0,0.00018377,2]
[401453417,1768234241165,-250.0,0.00018377,2]
[401453418,1768234241176,-217.15233878,0.00018377,2]
[401453419,1768234241189,-151.0,0.00018377,2]
[401453420,1768234241203,-1192.32158037,0.00018377,2]
[401453421,1768234241239,-307.67841963,0.00018377,2]
[401453422,1768234241250,-250.0,0.00018377,2]
[401453424,1768234241260,-225.18697532,0.00018377,2]
[401453426,1768234241272,-1500.0,0.00018377,2]
[401453427,1768234241282,-250.0,0.00018377,2]
[401453428,1768234241294,-151.0,0.00018377,2]
[401453429,1768234241307,-233.51889341,0.00018377,2]
[401453430,1768234241323,-1500.0,0.00018377,2]
[401453431,1768234241334,-250.0,0.00018377,2]
[401453432,1768234241346,-151.0,0.00018377,2]
[401453433,1768234241358,-151.0,0.00018377,2]
[401453434,1768234241368,-1500.0,0.00018377,2]
[401453435,1768234241379,-151.0,0.00018377,2]
[401453436,1768234241391,-250.0,0.00018377,2]
[401453437,1768234241402,-242.15909246,0.00018377,2]
[401453438,1768234241414,-151.0,0.00018377,2]
[401453439,1768234241426,-1500.0,0.00018377,2]
[401453440,1768234241436,-151.0,0.00018377,2]
[401453441,1768234241448,-250.0,0.00018377,2]
[401453442,1768234241459,-251.11897888,0.00018377,2]
[401453443,1768234241470,-151.0,0.00018377,2]
[401453444,1768234241481,-151.0,0.00018377,2]
[401453445,1768234241493,-1500.0,0.00018377,2]
[401453446,1768234241504,-271.32439801,0.00018377,2]
[401453447,1768234241517,-260.4103811,0.00018377,2]
[401453448,1768234241527,-151.0,0.00018377,2]
[401453449,1768234241539,-1500.0,0.00018377,2]
[401453450,1768234241550,-151.0,0.00018377,2]
[401453451,1768234241560,-270.0455652,0.00018377,2]
[401453452,1768234241571,-151.0,0.00018377,2]
[401453453,1768234241581,-1500.0,0.00018377,2]
[401453454,1768234241593,-280.03725112,0.00018377,2]
[401453455,1768234241603,-151.0,0.00018377,2]
[401453456,1768234241614,-151.0,0.00018377,2]
[401453457,1768234241624,-1500.0,0.00018377,2]
[401453458,1768234241635,-290.39862941,0.00018377,2]
[401453459,1768234241645,-151.0,0.00018377,2]
[401453460,1768234241657,-151.0,0.00018377,2]
[401453461,1768234241668,-1500.0,0.00018377,2]
[401453462,1768234241679,-301.1433787,0.00018377,2]
[401453463,1768234241690,-244.79769918,0.00018377,2]
[401453464,1768234241702,-151.0,0.00018377,2]
[401453465,1768234241713,-1500.0,0.00018377,2]
[401453466,1768234241725,-151.0,0.00018377,2]
[401453467,1768234241736,-151.0,0.00018377,2]
[401453468,1768234241747,-1500.0,0.00018377,2]
[401453469,1768234241757,-1500.0,0.00018377,2]
[401453470,1768234241769,-151.0,0.00018377,2]
[401453471,1768234241779,-151.0,0.00018377,2]
[401453472,1768234241789,-250.0,0.00018377,2]
[401453473,1768234241799,-250.0,0.00018377,2]
[401453474,1768234241810,-151.0,0.00018377,2]
[401453475,1768234241821,-250.0,0.00018377,2]
[401453476,1768234241831,-250.0,0.00018377,2]
[401453477,1768234241842,-151.0,0.00018377,2]
[401453478,1768234241852,-255.9181721,0.00018377,2]
[401453479,1768234241863,-250.0,0.00018377,2]
[401453480,1768234241873,-151.0,0.00018377,2]
[401453481,1768234241884,-250.0,0.00018377,2]
[401453482,1768234241895,-151.0,0.00018377,2]
[401453483,1768234241907,-250.0,0.00018377,2]
[401453484,1768234241918,-151.0,0.00018377,2]
[401453485,1768234241928,-250.0,0.00018377,2]
[401453486,1768234241939,-151.0,0.00018377,2]
[401453487,1768234241950,-151.0,0.00018377,2]
[401453488,1768234241961,-250.0,0.00018377,2]
[401453489,1768234241972,-151.0,0.00018377,2]
[401453490,1768234241982,-151.0,0.00018377,2]
[401453491,1768234241992,-151.0,0.00018377,2]
[401453492,1768234242002,-151.0,0.00018377,2]
[401453493,1768234242012,-250.0,0.00018377,2]
[401453494,1768234242022,-151.0,0.00018377,2]
[401453495,1768234242031,-151.0,0.00018377,2]
[401453496,1768234242042,-250.0,0.00018377,2]
[401453497,1768234242052,-283.61044671,0.00018377,2]
[401453498,1768234242062,-151.0,0.00018377,2]
[401453499,1768234242072,-151.0,0.00018377,2]
[401453500,1768234242082,-250.0,0.00018377,2]
[401453501,1768234242092,-151.0,0.00018377,2]
[401453502,1768234242103,-151.0,0.00018377,2]
[401453503,1768234242113,-250.0,0.00018377,2]
[401453504,1768234242126,-151.0,0.00018377,2]
[401453505,1768234242137,-151.0,0.00018377,2]
[401453506,1768234242149,-250.0,0.00018377,2]
[401453507,1768234242159,-250.0,0.00018377,2]
[401453508,1768234242170,-151.0,0.00018377,2]
[401453509,1768234242181,-151.0,0.00018377,2]
[401453510,1768234242192,-250.0,0.00018377,2]
[401453511,1768234242202,-250.0,0.00018377,2]
[401453512,1768234242212,-151.0,0.00018377,2]
[401453513,1768234242223,-131.9410876,0.00018377,2]
[401453514,1768234242237,-19.0589124,0.00018377,2]
[401453515,1768234242248,-250.0,0.00018377,2]
[401453516,1768234242259,-250.0,0.00018377,2]
[401453517,1768234242271,-151.0,0.00018377,2]
[401453518,1768234242283,-151.0,0.00018377,2]
[401453519,1768234242296,-250.0,0.00018377,2]
[401453520,1768234242308,-250.0,0.00018377,2]
[401453521,1768234242324,-163.79209166,0.00018377,2]
[401453522,1768234242335,-151.0,0.00018377,2]
[401453523,1768234242348,-250.0,0.00018377,2]
[401453524,1768234242361,-151.0,0.00018377,2]
[401453525,1768234242372,-250.0,0.00018377,2]
[401453526,1768234242382,-151.0,0.00018377,2]
[401453527,1768234242393,-250.0,0.00018377,2]
[401453528,1768234242404,-250.0,0.00018377,2]
[401453529,1768234242415,-245.0,0.00018377,2]
[401453530,1768234242426,-272.03607875,0.00018377,2]
[401453531,1768234242439,-496.47127164,0.00018377,2]
[401453532,1768234242449,-216.3,0.00018408,2]
[401453533,1768234242461,-2105.41764886,0.00018432,2]
[401453534,1768234242472,-2183.31810187,0.00018487,2]
[401453535,1768234242483,-151.09726321,0.00018538,2]
[401453536,1768234242494,-464.69276399,0.00018538,2]
[401453537,1768234242505,-603.78466378,0.00018538,2]
[401453538,1768234242516,-1856.9122849,0.00018538,2]
[401453539,1768234242526,-498.65743231,0.00018538,2]
[401453540,1768234242536,-2264.10087164,0.00018542,2]
[401453541,1768234242548,-2347.87260389,0.00018597,2]
[401453542,1768234242559,-390.70724453,0.00018652,2]
[401453543,1768234242573,-2044.03664571,0.00018652,2]
[401453544,1768234242585,-2524.82941417,0.00018707,2]
[401453545,1768234242596,-161.900775,0.0001872,2]
[401453546,1768234242607,-2618.2481025,0.00018762,2]
[401453547,1768234242617,-216.3,0.00018767,2]
[401453548,1768234242627,-835.73540458,0.00018817,2]
[401453549,1768234242638,-778.0,0.000189,2]
[401453550,1768234242648,-156.66869208,0.000189,2]
[401453551,1768234242659,-2487.15318209,0.00018925,2]
[401453552,1768234242670,-151.0,0.00018925,2]
[401453553,1768234242680,-1189.67367609,0.00018975,2]
[401453554,1768234242690,-216.3,0.00019127,2]
[401453555,1768234242700,-1267.2842,0.00019178,2]
[401453556,1768234242710,-5000.0,0.00019178,2]
[401453557,1768234242720,-5000.0,0.00019178,2]
[401453558,1768234242730,-5000.0,0.00019178,2]
[401453559,1768234242740,-203.3995931,0.00019178,2]
[401453560,1768234242750,-628.6453617,0.00019178,2]
[401453561,1768234242760,-373.9126792,0.00019178,2]
[401453562,1768234242770,-24584.08,0.000192,2]
[401453563,1768234242780,-402.13119061,0.00019379,2]
[401453564,1768234242790,-189.319,0.00019435,2]
[401453565,1768234242801,-2579.17784983,0.00019473,2]
[401453566,1768234242811,-151.0,0.00019473,2]
[401453567,1768234242821,-216.3,0.00019486,2]
[401453568,1768234242832,-155.37285609,0.00019508,2]
[401453570,1768234242842,-600.0,0.00019526,7]
[401453573,1768234242852,-373.578,0.00019526,2]
[401453575,1768234242862,-1767.58118072,0.00019551,2]
[401453578,1768234242873,-1041.66666667,0.00019565,2]
[401453579,1768234242892,-160.0,0.00019565,2]
[401453581,1768234242913,-273.0158,0.00019589,3]
[401453582,1768234242925,-162.0,0.00019646,2]
[401453583,1768234242935,-250.0,0.00019726,2]
[401453584,1768234242946,-728.0,0.00019836,2]
[401453585,1768234242956,-216.3,0.00019845,2]
[401453586,1768234242967,-160.0,0.00019863,3]
[401453587,1768234242977,-728.0,0.00019898,2]
[401453588,1768234242990,-311.82793071,0.0001995,2]
[401453589,1768234243002,-16286.53004585,0.0001995,2]
[401453600,1768234247248,-282.14530168,0.00018925,2]
[401453604,1768234495384,2450.0,0.00030127,120]
[401453605,1768234503274,2450.0,0.00030127,120]
[401453606,1768234506587,2450.0,0.00030127,120]
[401453607,1768234509281,2450.0,0.00030127,120]
[401453608,1768234511803,2450.0,0.00030127,120]
[401453609,1768234646557,265.84,0.00030127,120]
[401453611,1768234674003,500.0,0.00030136,120]
[401453612,1768234674250,500.0,0.00030136,120]
[401453613,1768234674488,500.0,0.00030136,120]
[401453614,1768234674717,500.0,0.00030136,120]
[401453615,1768234674952,500.0,0.00030136,120]
[401453616,1768234675182,500.0,0.00030136,120]
[401453617,1768234675505,500.0,0.00030136,120]
[401453618,1768234675745,500.0,0.00030136,120]
[401453619,1768234675982,500.0,0.00030136,120]
[401453620,1768234676205,500.0,0.00030136,120]
[401453621,1768234676445,500.0,0.00030136,120]
[401453627,1768235319083,56.4079296,0.0002,100]
[401453628,1768235319108,185.36863683,0.0002,100]
[401453629,1768235319135,185.36863683,0.0002,100]
[401453630,1768235319159,185.36863683,0.0002,100]
[401453631,1768235319185,185.36863683,0.0002,100]
[401453632,1768235319211,185.36863683,0.0002,100]
[401453633,1768235319233,185.36863683,0.0002,100]
[401453634,1768235319407,185.36863683,0.0002,100]
[401453635,1768235319428,185.36863683,0.0002,100]
[401453636,1768235319451,185.36863683,0.0002,100]
[401453637,1768235319472,42.00453037,0.0002,100]
[401453684,1768235432483,-300.0,9.995e-05,2]
[401453686,1768235432492,-1200.0,9.995e-05,2]
[401453688,1768235432501,-500.0,9.996e-05,2]
[401453690,1768235432511,-500.0,9.996e-05,2]
[401453692,1768235432520,-500.0,9.996e-05,2]
[401453694,1768235432530,-500.0,9.996e-05,2]
[401453696,1768235432539,-500.0,9.996e-05,2]
[401453698,1768235432548,-500.0,9.996e-05,2]
[401453701,1768235432558,-500.0,9.996e-05,2]
[401453705,1768235432567,-500.0,9.996e-05,2]
[401453708,1768235432577,-500.0,9.996e-05,2]
[401453710,1768235432586,-500.0,9.996e-05,2]
[401453712,1768235432596,-500.0,9.996e-05,2]
[401453714,1768235432605,-500.0,9.996e-05,2]
[401453716,1768235432615,-500.0,9.996e-05,2]
[401453718,1768235432624,-500.0,9.996e-05,2]
[401453720,1768235432633,-500.0,9.996e-05,2]
[401453722,1768235432642,-500.0,9.996e-05,2]
[401453724,1768235432652,-500.0,9.996e-05,2]
[401453726,1768235432661,-500.0,9.996e-05,2]
[401453728,1768235432671,-500.0,9.996e-05,2]
[401453730,1768235432683,-500.0,9.996e-05,2]
[401453732,1768235432693,-500.0,9.996e-05,2]
[401453734,1768235432702,-500.0,9.996e-05,2]
[401453736,1768235432711,-500.0,9.996e-05,2]
[401453738,1768235432721,-500.0,9.996e-05,2]
[401453740,1768235432731,-200.0,9.996e-05,2]
[401453742,1768235432740,-500.0,9.996e-05,2]
[401453744,1768235432749,-500.0,9.996e-05,2]
[401453746,1768235432760,-500.0,9.996e-05,2]
[401453748,1768235432769,-500.0,9.996e-05,2]
[401453750,1768235432778,-189.87169467,9.996e-05,2]
[401453752,1768235432787,-500.0,9.996e-05,2]
[401453754,1768235432796,-500.0,9.996e-05,2]
[401453756,1768235432805,-500.0,9.996e-05,2]
[401453758,1768235432814,-500.0,9.996e-05,2]
[401453760,1768235432824,-500.0,9.996e-05,2]
[401453762,1768235432833,-500.0,9.996e-05,2]
[401453764,1768235432843,-500.0,9.996e-05,2]
[401453766,1768235432852,-500.0,9.996e-05,2]
[401453768,1768235432861,-500.0,9.996e-05,2]
[401453770,1768235432871,-500.0,9.996e-05,2]
[401453771,1768235432880,-542.48231122,9.996e-05,2]
[401453772,1768235432889,-500.0,9.996e-05,2]
[401453773,1768235432900,-500.0,9.996e-05,2]
[401453774,1768235432909,-500.0,9.996e-05,2]
[401453775,1768235432918,-500.0,9.996e-05,2]
[401453776,1768235432926,-500.0,9.996e-05,2]
[401453777,1768235432935,-500.0,9.996e-05,2]
[401453778,1768235432944,-500.0,9.996e-05,2]
[401453779,1768235432953,-500.0,9.996e-05,2]
[401453780,1768235432963,-500.0,9.996e-05,2]
[401453781,1768235432975,-500.0,9.996e-05,2]
[401453782,1768235432984,-500.0,9.996e-05,2]
[401453783,1768235432994,-188.49706023,9.996e-05,2]
[401453784,1768235433006,-311.50293977,9.996e-05,2]
[401453785,1768235433015,-500.0,9.996e-05,2]
[401453786,1768235433026,-500.0,9.996e-05,2]
[401453787,1768235433036,-500.0,9.996e-05,2]
[401453788,1768235433046,-500.0,9.996e-05,2]
[401453789,1768235433055,-500.0,9.996e-05,2]
[401453790,1768235433066,-500.0,9.996e-05,2]
[401453791,1768235433075,-500.0,9.996e-05,2]
[401453792,1768235433084,-500.0,9.996e-05,2]
[401453793,1768235433094,-500.0,9.996e-05,2]
[401453794,1768235433103,-500.0,9.996e-05,2]
[401453795,1768235433112,-500.0,9.996e-05,2]
[401453796,1768235433122,-500.0,9.996e-05,2]
[401453797,1768235433131,-500.0,9.996e-05,2]
[401453798,1768235433140,-500.0,9.996e-05,2]
[401453799,1768235433150,-500.0,9.996e-05,2]
[401453800,1768235433159,-500.0,9.996e-05,2]
[401453801,1768235433169,-500.0,9.996e-05,2]
[401453802,1768235433178,-500.0,9.996e-05,2]
[401453803,1768235433188,-500.0,9.996e-05,2]
[401453804,1768235433197,-500.0,9.996e-05,2]
[401453805,1768235433211,-500.0,9.996e-05,2]
[401453806,1768235433223,-500.0,9.996e-05,2]
[401453807,1768235433233,-500.0,9.996e-05,2]
[401453808,1768235433243,-610.93273401,9.996e-05,2]
[401453809,1768235433253,-500.0,9.996e-05,2]
[401453810,1768235433263,-500.0,9.996e-05,2]
[401453811,1768235433273,-500.0,9.996e-05,2]
[401453812,1768235433284,-500.0,9.996e-05,2]
[401453813,1768235433294,-500.0,9.996e-05,2]
[401453814,1768235433305,-500.0,9.996e-05,2]